fUSD/lending_fUSD_20260329
["ID","MTS","AMOUNT","RATE_DAILY","PERIOD"]
[419026844,1774779035676,-282.71673119,0.00015309,2]
[419026845,1774779035687,-6291.95,0.0001531,2]
[419026846,1774779035696,-20710.18,0.0001531,2]
[419026847,1774779035706,-605.03689174,0.00015321,2]
[419026848,1774779035715,-1228.48002062,0.00015321,2]
[419026849,1774779035725,-578.76271375,0.00015321,2]
[419026850,1774779035734,-785.29407146,0.00015321,2]
[419026851,1774779035744,-874.64887728,0.00015321,2]
[419026852,1774779035754,-1033.57664235,0.00015321,2]
[419026853,1774779035763,-287.51731259,0.00015337,2]
[419026854,1774779035772,-500.0,0.00015364,2]
[419026855,1774779035782,-2653.35495619,0.00015364,2]
[419026856,1774779035792,-151.0,0.00015364,2]
[419026857,1774779035802,-293.17725025,0.00015364,2]
[419026858,1774779035811,-527.67098289,0.00015396,2]
[419026859,1774779035821,-2000.0,0.000154,2]
[419026860,1774779035830,-800.0,0.000154,5]
[419026861,1774779035839,-500.0,0.00015419,2]
[419026862,1774779035848,-151.0,0.00015419,2]
[419026863,1774779035858,-304.02480851,0.00015419,2]
[419026864,1774779035867,-402.63,0.00015435,2]
[419026865,1774779035877,-500.0,0.00015474,2]
[419026866,1774779035886,-151.0,0.00015474,2]
[419026867,1774779035896,-315.27372642,0.00015474,2]
[419026868,1774779035906,-1000.0,0.000155,5]
[419026869,1774779035916,-2003.48418562,0.000155,3]
[419026870,1774779035926,-2850.0,0.00015502,2]
[419026871,1774779035935,-4000.0,0.00015507,2]
[419026872,1774779036015,-2850.0,0.00015512,2]
[419026873,1774779036026,-500.0,0.00015529,2]
[419026874,1774779036035,-151.0,0.00015529,2]
[419026875,1774779036044,-323.14410244,0.00015529,2]
[419026876,1774779036054,-16399.79193447,0.00015564,2]
[419026877,1774779036064,-2850.0,0.00015575,2]
[419026878,1774779036074,-1000.0,0.00015581,2]
[419026879,1774779036083,-909.92281031,0.00015581,2]
[419026880,1774779036093,-1000.0,0.00015581,2]
[419026881,1774779036103,-1000.0,0.00015581,2]
[419026882,1774779036113,-500.0,0.00015584,2]
[419026883,1774779036123,-151.0,0.00015584,2]
[419026884,1774779036133,-2000.0,0.000156,2]
[419026885,1774779036143,-200.0,0.000156,5]
[419026886,1774779036154,-2850.0,0.00015603,2]
[419026887,1774779036164,-732.73812256,0.00015634,2]
[419026888,1774779036174,-500.0,0.00015639,2]
[419026889,1774779036184,-151.0,0.00015639,2]
[419026890,1774779036194,-4864.31245212,0.0001568,2]
[419026891,1774779036204,-500.0,0.00015694,2]
[419026892,1774779036214,-151.0,0.00015694,2]
[419026893,1774779036224,-200.0,0.000157,5]
[419026894,1774779036234,-3000.0,0.00015712,2]
[419026895,1774779036244,-2500.0,0.00015712,2]
[419026896,1774779036253,-1481.23780761,0.00015747,2]
[419026897,1774779036263,-181.08010149,0.00015747,2]
[419026898,1774779036273,-1000.0,0.00015748,2]
[419026899,1774779036282,-1000.0,0.00015748,2]
[419026900,1774779036292,-1000.0,0.00015748,2]
[419026901,1774779036302,-500.0,0.00015749,2]
[419026902,1774779036312,-151.0,0.00015749,2]
[419026903,1774779036321,-255.73,0.00015749,2]
[419026904,1774779036330,-1958.47,0.00015753,2]
[419026905,1774779036340,-2850.0,0.00015789,2]
[419026906,1774779036349,-1407.81,0.000158,2]
[419026907,1774779036358,-2000.0,0.000158,2]
[419026908,1774779036368,-200.0,0.000158,5]
[419026909,1774779036378,-4080.56240452,0.000158,2]
[419026910,1774779036387,-500.0,0.00015839,2]
[419026911,1774779036396,-21908.19949049,0.0001584,2]
[419026912,1774779036413,-43314.8197893,0.0001584,2]
[419026913,1774779036422,-2000.0,0.0001584,2]
[419026914,1774779036432,-2000.0,0.0001584,2]
[419026915,1774779036442,-2000.0,0.0001584,2]
[419026916,1774779036452,-458.23651258,0.0001585,2]
[419026917,1774779036461,-4080.5624045,0.0001585,2]
[419026918,1774779036471,-3292.0,0.00015859,2]
[419026919,1774779036484,-500.0,0.00015871,2]
[419026920,1774779036502,-200.0,0.00015871,2]
[419026921,1774779036523,-500.0,0.00015872,2]
[419026922,1774779036542,-200.0,0.00015872,2]
[419026923,1774779036562,-2850.0,0.00015888,2]
[419026924,1774779036580,-4000.0,0.00015895,2]
[419026925,1774779036598,-625.53,0.000159,2]
[419026926,1774779036613,-336.8339145,0.000159,2]
[419026927,1774779036628,-527.67098289,0.000159,2]
[419026928,1774779036648,-20210.25894818,0.000159,2]
[419026929,1774779036667,-200.0,0.000159,5]
[419026930,1774779036686,-120267.84096246,0.000159,2]
[419026931,1774779036703,-196873.15996028,0.000159,2]
[419026932,1774779036721,-419.12397738,0.000159,2]
[419026933,1774779036740,-458.23651258,0.000159,2]
[419026934,1774779036758,-16399.79193447,0.000159,2]
[419026935,1774779036771,-4080.5624045,0.000159,2]
[419026936,1774779036787,-2794.0,0.000159,5]
[419026937,1774779036802,-2081.0,0.00015935,2]
[419026938,1774779036817,-2139.47157294,0.00015956,2]
[419026939,1774779036832,-1968.33862778,0.00015956,2]
[419026940,1774779036847,-5000.0,0.0001596,2]
[419026941,1774779036861,-601.35,0.0001596,2]
[419026942,1774779036877,-500.0,0.0001596,2]
[419026943,1774779036891,-500.0,0.0001596,2]
[419026944,1774779036906,-18417.90597816,0.00015961,2]
[419026945,1774779036925,-114318.26444824,0.00015961,2]
[419026946,1774779036940,-702.5406359,0.00015961,2]
[419026947,1774779036954,-700.0,0.0001597,2]
[419026948,1774779036968,-700.0,0.0001597,2]
[419026949,1774779036982,-700.0,0.0001597,2]
[419026950,1774779036996,-1354.65118905,0.0001597,2]
[419026951,1774779037011,-166.0,0.00015973,2]
[419026952,1774779037025,-500.0,0.00015973,2]
[419026953,1774779037039,-500.0,0.00015973,2]
[419026954,1774779037053,-500.0,0.00015973,2]
[419026955,1774779037067,-599.64507648,0.00015973,2]
[419026956,1774779037081,-501.14424675,0.00015973,2]
[419026957,1774779037096,-500.0,0.00015973,2]
[419026958,1774779037110,-500.0,0.00015973,2]
[419026959,1774779037125,-500.0,0.00015973,2]
[419026960,1774779037140,-502.54797101,0.00015973,2]
[419026961,1774779037153,-500.0,0.00015973,2]
[419026962,1774779037168,-502.82104144,0.00015973,2]
[419026963,1774779037183,-500.0,0.00015973,2]
[419026964,1774779037198,-500.0,0.00015973,2]
[419026965,1774779037212,-500.0,0.00015973,2]
[419026966,1774779037222,-500.0,0.00015973,2]
[419026967,1774779037232,-500.0,0.00015973,2]
[419026968,1774779037241,-500.0,0.00015973,2]
[419026969,1774779037250,-285.70561794,0.00015973,2]
[419026970,1774779037386,-403.83679365,0.00015973,2]
[419026971,1774779037405,-500.0,0.00015973,2]
[419026972,1774779037414,-500.0,0.00015973,2]
[419026973,1774779037424,-500.0,0.00015973,2]
[419026974,1774779037433,-500.0,0.00015973,2]
[419026975,1774779037442,-500.0,0.00015973,2]
[419026976,1774779037452,-1430.41424394,0.00015984,2]
[419026977,1774779037462,-321.28111551,0.0001599,2]
[419026978,1774779037472,-228.85453188,0.0001599,2]
[419026979,1774779037482,-228.85453188,0.0001599,2]
[419026980,1774779037491,-151.0,0.00015995,2]
[419026981,1774779037501,-151.0,0.00015997,2]
[419026982,1774779037510,-601.35,0.00015997,2]
[419026983,1774779037520,-601.35,0.00015997,2]
[419026984,1774779037530,-601.35,0.00015997,2]
[419026986,1774779037539,-601.35,0.00015997,2]
[419026988,1774779037548,-601.35,0.00015997,2]
[419026990,1774779037558,-601.35,0.00015997,2]
[419026991,1774779037567,-601.35,0.00015997,2]
[419026992,1774779037576,-601.35,0.00015997,2]
[419026993,1774779037586,-601.35,0.00015997,2]
[419026994,1774779037595,-601.35,0.00015997,2]
[419026995,1774779037604,-601.35,0.00015997,2]
[419026996,1774779037614,-601.35,0.00015997,2]
[419026997,1774779037625,-601.35,0.00015997,2]
[419026998,1774779037635,-601.35,0.00015997,2]
[419026999,1774779037644,-601.35,0.00015997,2]
[419027000,1774779037654,-500.0,0.00015997,2]
[419027001,1774779037664,-500.0,0.00015997,2]
[419027002,1774779037673,-500.0,0.00015997,2]
[419027003,1774779037683,-500.0,0.00015997,2]
[419027004,1774779037692,-500.0,0.00015997,2]
[419027005,1774779037702,-500.0,0.00015997,2]
[419027006,1774779037711,-500.0,0.00015997,2]
[419027007,1774779037721,-303.25812129,0.00015997,2]
[419027008,1774779037730,-500.0,0.00015997,2]
[419027009,1774779037739,-500.0,0.00015997,2]
[419027010,1774779037749,-261.56732988,0.00015998,2]
[419027011,1774779037759,-258.09544847,0.00015998,2]
[419027012,1774779037768,-1000.0,0.00015998,2]
[419027013,1774779037777,-1131.19487627,0.00015999,5]
[419027014,1774779037787,-1079.3194623,0.00015999,5]
[419027015,1774779037796,-1079.3194623,0.00015999,5]
[419027016,1774779037805,-1079.3194623,0.00015999,5]
[419027017,1774779037815,-1443.24,0.00015999,2]
[419027018,1774779037824,-1443.24,0.00015999,2]
[419027019,1774779037834,-1443.24,0.00015999,2]
[419027020,1774779037844,-1443.24,0.00015999,2]
[419027021,1774779037853,-1443.24,0.00015999,2]
[419027022,1774779037863,-1443.24,0.00015999,2]
[419027023,1774779037872,-1443.24,0.00015999,2]
[419027024,1774779037882,-1443.24,0.00015999,2]
[419027025,1774779037891,-1443.24,0.00015999,2]
[419027026,1774779037901,-1443.24,0.00015999,2]
[419027027,1774779037910,-1443.24,0.00015999,2]
[419027028,1774779037921,-1443.24,0.00015999,2]
[419027029,1774779037930,-1443.24,0.00015999,2]
[419027030,1774779037939,-1443.37597871,0.00015999,2]
[419027031,1774779037949,-500.0,0.00015999,2]
[419027032,1774779037958,-500.0,0.00015999,2]
[419027033,1774779037968,-500.0,0.00015999,2]
[419027034,1774779037978,-500.0,0.00015999,2]
[419027035,1774779037987,-500.0,0.00015999,2]
[419027036,1774779037996,-500.0,0.00015999,2]
[419027037,1774779038006,-500.0,0.00015999,2]
[419027038,1774779038015,-500.0,0.00015999,2]
[419027039,1774779038025,-500.0,0.00015999,2]
[419027040,1774779038034,-500.0,0.00015999,2]
[419027041,1774779038043,-500.0,0.00015999,2]
[419027042,1774779038053,-500.0,0.00015999,2]
[419027043,1774779038062,-500.0,0.00015999,2]
[419027044,1774779038072,-500.0,0.00015999,2]
[419027045,1774779038082,-500.0,0.00015999,2]
[419027046,1774779038092,-500.0,0.00015999,2]
[419027047,1774779038101,-500.0,0.00015999,2]
[419027048,1774779038111,-500.0,0.00015999,2]
[419027049,1774779038120,-500.0,0.00015999,2]
[419027050,1774779038130,-500.0,0.00015999,2]
[419027051,1774779038139,-500.0,0.00015999,2]
[419027052,1774779038149,-500.0,0.00015999,2]
[419027053,1774779038158,-500.0,0.00015999,2]
[419027054,1774779038168,-500.0,0.00015999,2]
[419027055,1774779038178,-500.0,0.00015999,2]
[419027056,1774779038187,-500.0,0.00015999,2]
[419027057,1774779038197,-500.0,0.00015999,2]
[419027058,1774779038206,-500.0,0.00015999,2]
[419027059,1774779038215,-500.0,0.00015999,2]
[419027060,1774779038224,-500.0,0.00015999,2]
[419027061,1774779038234,-500.0,0.00015999,2]
[419027062,1774779038244,-500.0,0.00015999,2]
[419027063,1774779038254,-500.0,0.00015999,2]
[419027064,1774779038263,-500.0,0.00015999,2]
[419027065,1774779038274,-500.0,0.00015999,2]
[419027066,1774779038284,-500.0,0.00015999,2]
[419027067,1774779038294,-500.0,0.00015999,2]
[419027068,1774779038303,-500.0,0.00015999,2]
[419027069,1774779038313,-500.0,0.00015999,2]
[419027070,1774779038323,-500.0,0.00015999,2]
[419027071,1774779038333,-500.0,0.00015999,2]
[419027072,1774779038342,-500.0,0.00015999,2]
[419027073,1774779038352,-500.0,0.00015999,2]
[419027074,1774779038362,-500.0,0.00015999,2]
[419027075,1774779038371,-500.0,0.00015999,2]
[419027076,1774779038381,-500.0,0.00015999,2]
[419027077,1774779038391,-500.0,0.00015999,2]
[419027078,1774779038401,-500.0,0.00015999,2]
[419027079,1774779038411,-500.0,0.00015999,2]
[419027080,1774779038421,-500.0,0.00015999,2]
[419027081,1774779038431,-500.0,0.00015999,2]
[419027082,1774779038440,-500.0,0.00015999,2]
[419027083,1774779038450,-500.0,0.00015999,2]
[419027084,1774779038460,-500.0,0.00015999,2]
[419027085,1774779038470,-500.0,0.00015999,2]
[419027086,1774779038480,-500.0,0.00015999,2]
[419027087,1774779038490,-500.0,0.00015999,2]
[419027088,1774779038499,-500.0,0.00015999,2]
[419027089,1774779038511,-500.0,0.00015999,2]
[419027090,1774779038521,-500.0,0.00015999,2]
[419027091,1774779038530,-500.0,0.00015999,2]
[419027092,1774779038539,-500.0,0.00015999,2]
[419027093,1774779038548,-500.0,0.00015999,2]
[419027094,1774779038557,-500.0,0.00015999,2]
[419027095,1774779038567,-500.0,0.00015999,2]
[419027096,1774779038576,-500.0,0.00015999,2]
[419027097,1774779038586,-500.0,0.00015999,2]
[419027098,1774779038595,-500.0,0.00015999,2]
[419027099,1774779038604,-500.0,0.00015999,2]
[419027100,1774779038613,-500.0,0.00015999,2]
[419027101,1774779038623,-500.0,0.00015999,2]
[419027102,1774779038633,-500.0,0.00015999,2]
[419027103,1774779038642,-500.0,0.00015999,2]
[419027104,1774779038651,-500.0,0.00015999,2]
[419027105,1774779038660,-500.0,0.00015999,2]
[419027106,1774779038670,-500.0,0.00015999,2]
[419027107,1774779038680,-500.0,0.00015999,2]
[419027108,1774779038689,-500.0,0.00015999,2]
[419027109,1774779038698,-500.0,0.00015999,2]
[419027110,1774779038707,-500.0,0.00015999,2]
[419027111,1774779038717,-478.24015472,0.00015999,2]
[419027112,1774779038726,-24115.89075284,0.00016,2]
[419027113,1774779039891,-452.89098963,0.00012497,2]
[419027114,1774779039903,-47.10901037,0.00012497,2]
[419027115,1774779039912,-486.85805901,0.00012497,2]
[419027116,1774779039923,-188.62058068,0.00013699,2]
[419027117,1774779039932,-142.8816766,0.000149,2]
[419027118,1774779040279,-29.28720323,0.000149,2]
[419027119,1774779040289,-235.41059689,0.00015999,2]
[419027120,1774779040298,-730431.10536737,0.00016,2]
[419027121,1774779040308,-2500.0,0.00016,10]
[419027122,1774779040318,-714545.16515202,0.00016,2]
[419027123,1774779040328,-346170.02631584,0.00016,2]
[419027124,1774779040338,-546394.19323579,0.00016,2]
[419027125,1774779040348,-250.0,0.00016,3]
[419027126,1774779040358,-137173.15579653,0.00016,2]
[419027127,1774779040598,-1642.56931064,0.00016,2]
[419027128,1774779040917,-381.71354128,0.00016,2]
[419027133,1774779043094,-2468.0,0.00014562,2]
[419027134,1774779043104,-324.96864935,0.00016,5]
[419027135,1774779046060,-2428.445,0.00015997,2]
[419027136,1774779046520,-176.30167223,0.000159,2]
[419027137,1774779046530,-134.24432777,0.00015997,2]
[419027141,1774780231976,-1657.02,0.00011507,2]
[419027142,1774780231986,-250.0,0.00011827,2]
[419027143,1774780231996,-1415.74,0.00012132,2]
[419027144,1774780232011,-191.91711961,0.00012148,2]
[419027145,1774780232027,-1945.908,0.00012248,2]
[419027146,1774780232037,-178.295,0.00012248,2]
[419027147,1774780232047,-200.0,0.00012414,2]
[419027148,1774780232057,-300.0,0.00012457,2]
[419027149,1774780232068,-1200.0,0.00012457,2]
[419027150,1774780232078,-19499.77373986,0.00012458,2]
[419027151,1774780232087,-264.00193136,0.00012458,2]
[419027152,1774780232097,-191.91711961,0.00012461,2]
[419027153,1774780232107,-150.0,0.00012472,2]
[419027154,1774780232117,-500.0,0.00012473,2]
[419027155,1774780232129,-500.0,0.00012473,2]
[419027156,1774780232139,-500.0,0.00012473,2]
[419027157,1774780232149,-500.0,0.00012473,2]
[419027158,1774780232159,-500.0,0.00012473,2]
[419027159,1774780232168,-500.0,0.00012473,2]
[419027160,1774780232178,-500.0,0.00012473,2]
[419027161,1774780232188,-500.0,0.00012473,2]
[419027162,1774780232199,-500.44548801,0.00012473,2]
[419027163,1774780232209,-204.55546462,0.00012488,2]
[419027164,1774780232220,-190.80064131,0.00012497,2]
[419027165,1774780232230,-500.0,0.00012497,2]
[419027166,1774780232240,-500.0,0.00012497,2]
[419027168,1774780232250,-559.7273801,0.00012497,2]
[419027170,1774780232260,-294.0885344,0.00012497,2]
[419027172,1774780232269,-56116.06632531,0.00012498,2]
[419027173,1774780232285,-93640.81972087,0.00012498,2]
[419027174,1774780232298,-1254.41808677,0.00012498,2]
[419027186,1774780238045,-276865.92444994,0.00012498,2]
[419027187,1774780238057,-717.53564301,0.00012498,2]
[419027188,1774780238070,-3127.51443465,0.00012498,2]
[419027191,1774780240247,-1068277.72133945,0.00012498,2]
[419027192,1774780240258,-1521.19189966,0.00012658,2]
[419027193,1774780240269,-250.0,0.00012658,2]
[419027194,1774780240279,-19499.77373985,0.0001284,2]
[419027195,1774780240290,-151.0,0.00012859,2]
[419027196,1774780240299,-1000.0,0.00012861,2]
[419027197,1774780240309,-155.42,0.00012887,2]
[419027198,1774780240319,-151.0,0.00012961,2]
[419027199,1774780240329,-151.0,0.00012967,2]
[419027200,1774780240338,-250.0,0.00013,2]
[419027201,1774780240348,-1000.0,0.00013021,2]
[419027202,1774780240358,-335.72179077,0.00013021,2]
[419027203,1774780240368,-1887.26,0.00013109,2]
[419027204,1774780240377,-19499.77373985,0.00013223,2]
[419027205,1774780240386,-500.0,0.00013352,2]
[419027206,1774780240395,-500.0,0.00013352,2]
[419027207,1774780240405,-500.0,0.00013352,2]
[419027208,1774780240415,-500.0,0.00013352,2]
[419027209,1774780240425,-500.0,0.00013352,2]
[419027210,1774780240434,-500.0,0.00013352,2]
[419027211,1774780240444,-500.0,0.00013352,2]
[419027212,1774780240454,-483.29461098,0.00013352,2]
[419027213,1774780240463,-500.0,0.00013352,2]
[419027214,1774780240473,-704.0,0.00013352,2]
[419027215,1774780240483,-704.0,0.00013352,2]
[419027216,1774780240493,-500.0,0.00013352,2]
[419027217,1774780240503,-704.0,0.00013352,2]
[419027218,1774780240513,-500.0,0.00013352,2]
[419027219,1774780240524,-500.0,0.00013352,2]
[419027220,1774780240533,-500.0,0.00013352,2]
[419027221,1774780240543,-500.0,0.00013352,2]
[419027222,1774780240552,-500.0,0.00013352,2]
[419027223,1774780240561,-500.0,0.00013352,2]
[419027224,1774780240570,-704.0,0.00013352,2]
[419027225,1774780240580,-508.56311436,0.00013352,2]
[419027226,1774780240590,-500.0,0.00013352,2]
[419027227,1774780240599,-704.0,0.00013352,2]
[419027228,1774780240610,-500.0,0.00013352,2]
[419027229,1774780240619,-500.0,0.00013352,2]
[419027230,1774780240629,-221.42926466,0.00013352,2]
[419027231,1774780240638,-704.0,0.00013352,2]
[419027232,1774780240647,-500.0,0.00013352,2]
[419027233,1774780240657,-500.0,0.00013352,2]
[419027234,1774780240666,-704.0,0.00013352,2]
[419027235,1774780240676,-500.0,0.00013352,2]
[419027236,1774780240685,-500.0,0.00013352,2]
[419027237,1774780240695,-704.0,0.00013352,2]
[419027238,1774780240704,-500.0,0.00013352,2]
[419027239,1774780240714,-500.0,0.00013352,2]
[419027240,1774780240724,-704.0,0.00013352,2]
[419027241,1774780240735,-500.0,0.00013352,2]
[419027242,1774780240744,-500.0,0.00013352,2]
[419027243,1774780240754,-429.0,0.00013352,2]
[419027244,1774780240764,-704.0,0.00013352,2]
[419027245,1774780240774,-500.0,0.00013352,2]
[419027246,1774780240784,-500.0,0.00013352,2]
[419027247,1774780240794,-500.0,0.00013352,2]
[419027248,1774780240803,-429.0,0.00013352,2]
[419027249,1774780240813,-704.0,0.00013352,2]
[419027250,1774780240822,-500.0,0.00013352,2]
[419027251,1774780240832,-580.96645017,0.00013352,2]
[419027252,1774780240841,-500.0,0.00013352,2]
[419027253,1774780240850,-704.0,0.00013352,2]
[419027254,1774780240860,-429.0,0.00013352,2]
[419027255,1774780240870,-500.0,0.00013352,2]
[419027256,1774780240880,-219.10448352,0.00013352,2]
[419027257,1774780240890,-704.0,0.00013352,2]
[419027258,1774780240900,-414.92841658,0.00013352,2]
[419027259,1774780240909,-429.0,0.00013352,2]
[419027260,1774780240919,-704.0,0.00013352,2]
[419027261,1774780240928,-429.0,0.00013352,2]
[419027262,1774780240938,-704.0,0.00013352,2]
[419027263,1774780240947,-500.0,0.00013352,2]
[419027264,1774780240956,-704.0,0.00013352,2]
[419027265,1774780240966,-429.0,0.00013352,2]
[419027266,1774780240976,-500.0,0.00013352,2]
[419027267,1774780240986,-429.0,0.00013352,2]
[419027268,1774780240995,-429.0,0.00013352,2]
[419027269,1774780241005,-704.0,0.00013352,2]
[419027270,1774780241015,-500.0,0.00013352,2]
[419027271,1774780241024,-429.0,0.00013352,2]
[419027272,1774780241034,-500.0,0.00013352,2]
[419027273,1774780241043,-429.0,0.00013352,2]
[419027274,1774780241053,-500.0,0.00013352,2]
[419027275,1774780241062,-500.0,0.00013352,2]
[419027276,1774780241072,-429.0,0.00013352,2]
[419027277,1774780241082,-500.0,0.00013352,2]
[419027278,1774780241173,-429.0,0.00013352,2]
[419027279,1774780241184,-704.0,0.00013352,2]
[419027280,1774780241194,-500.0,0.00013352,2]
[419027281,1774780241205,-429.0,0.00013352,2]
[419027282,1774780241216,-500.0,0.00013352,2]
[419027283,1774780241225,-429.0,0.00013352,2]
[419027284,1774780241235,-583.94965812,0.00013352,2]
[419027285,1774780241245,-429.0,0.00013352,2]
[419027286,1774780241255,-429.0,0.00013352,2]
[419027287,1774780241265,-429.0,0.00013352,2]
[419027288,1774780241275,-704.0,0.00013352,2]
[419027289,1774780241285,-429.0,0.00013352,2]
[419027290,1774780241295,-704.0,0.00013352,2]
[419027291,1774780241304,-429.0,0.00013352,2]
[419027292,1774780241314,-429.0,0.00013352,2]
[419027293,1774780241323,-704.0,0.00013352,2]
[419027294,1774780241332,-429.0,0.00013352,2]
[419027295,1774780241342,-704.0,0.00013352,2]
[419027296,1774780241352,-429.0,0.00013352,2]
[419027297,1774780241361,-704.0,0.00013352,2]
[419027298,1774780241371,-429.0,0.00013352,2]
[419027299,1774780241380,-707.6946264,0.00013352,2]
[419027300,1774780241389,-452.93669017,0.00013352,2]
[419027301,1774780241399,-150.0,0.00013405,2]
[419027302,1774780241408,-150.0,0.00013452,2]
[419027303,1774780241417,-272.177711,0.00013453,2]
[419027304,1774780241427,-150.0,0.000135,2]
[419027305,1774780241437,-1500.0,0.00013568,2]
[419027306,1774780241447,-255.0,0.00013569,2]
[419027307,1774780241457,-19499.77373985,0.00013605,2]
[419027308,1774780241467,-500.0,0.00013626,2]
[419027309,1774780241477,-500.0,0.00013626,2]
[419027310,1774780241487,-327.14015113,0.00013626,2]
[419027311,1774780241496,-156.35128686,0.00013626,2]
[419027312,1774780241506,-500.0,0.00013626,2]
[419027313,1774780241515,-500.0,0.00013626,2]
[419027314,1774780241524,-500.0,0.00013626,2]
[419027315,1774780241534,-500.0,0.00013626,2]
[419027316,1774780241543,-500.0,0.00013626,2]
[419027317,1774780241552,-500.0,0.00013626,2]
[419027318,1774780241561,-500.0,0.00013626,2]
[419027319,1774780241571,-500.0,0.00013626,2]
[419027320,1774780241581,-500.0,0.00013626,2]
[419027321,1774780241591,-500.0,0.00013626,2]
[419027322,1774780241600,-206.13980161,0.00013626,2]
[419027323,1774780241610,-500.0,0.00013626,2]
[419027324,1774780241619,-500.0,0.00013626,2]
[419027325,1774780241628,-500.0,0.00013626,2]
[419027326,1774780241638,-182.16957206,0.00013626,2]
[419027327,1774780241647,-150.0,0.00013626,2]
[419027328,1774780241656,-154.31995128,0.00013626,2]
[419027329,1774780241666,-500.0,0.00013626,2]
[419027330,1774780241676,-500.0,0.00013626,2]
[419027331,1774780241686,-390.7556468,0.00013626,2]
[419027332,1774780241696,-150.0,0.00013626,2]
[419027333,1774780241706,-216.9963302,0.00013626,2]
[419027334,1774780241716,-500.0,0.00013626,2]
[419027335,1774780241726,-500.0,0.00013626,2]
[419027336,1774780241735,-500.0,0.00013626,2]
[419027337,1774780241745,-500.0,0.00013626,2]
[419027338,1774780241755,-500.0,0.00013626,2]
[419027339,1774780241764,-500.0,0.00013626,2]
[419027340,1774780241775,-500.0,0.00013626,2]
[419027341,1774780241784,-500.0,0.00013626,2]
[419027342,1774780241794,-500.0,0.00013626,2]
[419027343,1774780241804,-353.36335448,0.00013626,2]
[419027344,1774780241813,-500.0,0.00013626,2]
[419027345,1774780241823,-521.46914168,0.00013626,2]
[419027346,1774780241833,-150.0,0.00013626,2]
[419027347,1774780241843,-207.71494983,0.00013626,2]
[419027348,1774780241852,-1040.83,0.00013626,2]
[419027349,1774780241862,-420.0,0.00013669,2]
[419027350,1774780241871,-439.23,0.00013689,2]
[419027351,1774780241881,-200.0,0.00013699,2]
[419027352,1774780241890,-150.0,0.000137,2]
[419027353,1774780241900,-217.8882415,0.000137,2]
[419027354,1774780241910,-1680.0,0.00013703,2]
[419027355,1774780241919,-153.43,0.00013769,2]
[419027356,1774780241929,-1126.24,0.000138,2]
[419027357,1774780241938,-1669.77,0.000138,2]
[419027358,1774780241947,-990.46,0.000138,2]
[419027359,1774780241957,-529.46,0.000138,2]
[419027360,1774780241966,-1040.83,0.000139,2]
[419027361,1774780241978,-1829.97316416,0.000139,2]
[419027362,1774780241987,-502.34122551,0.00013973,2]
[419027363,1774780241997,-500.0,0.00013973,2]
[419027364,1774780242008,-500.0,0.00013973,2]
[419027365,1774780242017,-500.0,0.00013973,2]
[419027366,1774780242027,-500.0,0.00013973,2]
[419027367,1774780242037,-500.0,0.00013973,2]
[419027368,1774780242046,-500.0,0.00013973,2]
[419027369,1774780242056,-500.0,0.00013973,2]